bitfinex/quotes_SOLUSD_20220109
["timestamp","ask_amount","ask_price","bid_price","bid_amount"]
[1641727494844,12.7233,140.4,140.34,29.13381863]
[1641727495045,12.7233,140.4,140.3,1.78]
[1641727495645,7.94846175,140.39,140.3,1.78]
[1641727495847,1.78,140.38,140.32,10.6939]
[1641727496045,2.03,140.38,140.32,10.6939]
[1641727496645,2.03,140.38,140.31,30.975427]
[1641727497145,6.04309918,140.38,140.31,30.975427]
[1641727497346,16.73799918,140.38,140.3,1.78]
[1641727498345,3.0,140.37,140.3,1.78]
[1641727498545,1.78,140.36,140.3,1.78]
[1641727498746,2.03,140.36,140.3,1.78]
[1641727499746,12.7262,140.36,140.29,36.10878047]
[1641727500146,2.03,140.36,140.29,36.10878047]
[1641727500951,0.25,140.36,140.29,36.10878047]
[1641727502050,0.25,140.36,140.31,10.6944]
[1641727502350,3.25,140.36,140.32,26.26410073]
[1641727502551,0.25,140.37,140.32,26.26410073]
[1641727502751,0.25,140.35,140.32,26.26410073]
[1641727502951,0.25,140.37,140.32,26.26410073]
[1641727502952,2.03,140.37,140.32,26.26410073]
[1641727503456,12.7258,140.37,140.29,10.6958]
[1641727503654,12.7258,140.37,140.27,1.78]
[1641727504054,12.7258,140.37,140.28,0.25]
[1641727504253,12.7258,140.37,140.28,31.60697681]
[1641727505883,12.7258,140.37,140.28,42.30347681]
[1641727506384,26.21025527,140.36,140.28,42.05347681]
[1641727506584,1.78,140.35,140.28,42.05347681]
[1641727506784,12.727,140.35,140.28,42.05347681]
[1641727507185,10.947,140.35,140.28,42.05347681]
[1641727507587,0.25,140.35,140.28,42.05347681]
[1641727508592,0.25,140.35,140.29,1.78]
[1641727508786,3.25,140.35,140.29,1.78]
[1641727509089,3.25,140.34,140.29,1.78]
[1641727509287,10.6966,140.36,140.29,1.78]
[1641727509488,3.25,140.35,140.29,1.78]
[1641727510093,3.0,140.34,140.28,42.05347681]
[1641727510489,3.25,140.33,140.28,31.35697681]
[1641727510689,0.25,140.33,140.28,31.35697681]
[1641727511394,0.25,140.33,140.27,12.4776]
[1641727511593,0.25,140.33,140.27,1.78]
[1641727511792,3.25,140.33,140.27,1.78]
[1641727511994,3.25,140.32,140.27,1.78]
[1641727512196,5.03,140.32,140.27,1.78]
[1641727512395,22.46803498,140.31,140.27,1.78]
[1641727512593,1.782,140.3,140.27,1.78]
[1641727512793,2.032,140.3,140.27,1.78]
[1641727513394,10.7014,140.29,140.27,1.78]
[1641727513796,0.25,140.28,140.27,1.78]
[1641727515495,0.25,140.28,140.24,6.4847087]
[1641727515696,0.25,140.3,140.24,6.4847087]
[1641727516796,10.7016,140.29,140.24,6.4847087]
[1641727516996,0.25,140.28,140.24,6.4847087]
[1641727517997,0.25,140.29,140.24,6.4847087]
[1641727520199,10.9517,140.29,140.24,6.4847087]
[1641727520600,4.782,140.28,140.24,6.4847087]
[1641727521802,3.0,140.28,140.24,6.4847087]
[1641727522002,0.25,140.27,140.23,2.5793937]
[1641727522206,3.25,140.27,140.21,22.45757713]
[1641727522403,0.25,140.29,140.21,22.45757713]
[1641727522603,3.0,140.26,140.21,22.45757713]
[1641727522803,0.25,140.3,140.24,10.6997]
[1641727523107,3.25,140.3,140.24,10.6997]
[1641727524106,3.25,140.3,140.23,12.4825]
[1641727524332,5.032,140.3,140.23,10.7005]
[1641727525103,4.782,140.3,140.23,10.7005]
[1641727525904,15.4826,140.3,140.23,10.7005]
[1641727526305,0.25,140.29,140.22,35.61]
[1641727526707,0.25,140.29,140.22,12.4834]
[1641727527507,0.25,140.29,140.22,1.782]
[1641727528005,10.9515,140.29,140.22,1.782]
[1641727528204,75.6408,140.31,140.22,1.782]
[1641727528405,4.01309918,140.33,140.23,0.25]
[1641727528605,4.01309918,140.33,140.23,3.25]
[1641727528805,4.01309918,140.33,140.23,5.03082586]
[1641727529105,23.8342,140.35,140.23,5.03082586]
[1641727529106,22.5408042,140.34,140.23,5.03082586]
[1641727529504,22.5408042,140.34,140.28,10.6956]
[1641727529706,27.84729918,140.35,140.28,10.6956]
[1641727529707,1.78,140.33,140.28,10.6956]
[1641727529908,27.84729918,140.35,140.28,10.6956]
[1641727530106,27.84729918,140.35,140.29,1.78]
[1641727530306,27.84729918,140.35,140.25,3.25]
[1641727530507,0.25,140.34,140.3,10.6939]
[1641727530707,4.01309918,140.35,140.3,10.6939]
[1641727531313,105.7879141,140.36,140.3,10.6939]
[1641727531942,3.0,140.35,140.3,10.6939]
[1641727532542,3.0,140.35,140.29,10.6961]
[1641727532745,0.25,140.34,140.29,10.6961]
[1641727535647,7.01309918,140.35,140.29,10.6961]
[1641727536746,3.0,140.35,140.29,10.6961]
[1641727537547,0.25,140.34,140.29,10.6961]
[1641727537848,9.99634295,140.34,140.29,10.6961]
[1641727538247,9.99634295,140.34,140.28,10.6969]
[1641727538449,8.21634295,140.34,140.27,24.1504]
[1641727538648,1.78,140.33,140.25,1.78]
[1641727538849,1.78,140.33,140.24,80.4701]
[1641727539047,0.25,140.32,140.24,80.4701]
[1641727539249,0.25,140.32,140.28,10.6964]
[1641727540249,5.79309918,140.33,140.28,10.6964]
[1641727540449,4.01309918,140.33,140.28,10.6964]
[1641727540848,4.01309918,140.34,140.28,10.6964]
[1641727541049,4.26309918,140.34,140.28,10.6964]
[1641727541748,4.26309918,140.34,140.29,29.36609567]
[1641727541952,4.26309918,140.34,140.29,40.06159567]
[1641727543552,4.26309918,140.34,140.29,10.6955]
[1641727545558,3.0,140.33,140.29,10.6955]
[1641727546557,0.25,140.34,140.29,10.6955]
[1641727546757,3.25,140.34,140.29,10.6955]
[1641727548259,0.25,140.34,140.29,10.6955]
[1641727549461,4.01309918,140.35,140.3,0.25]
[1641727549663,4.01309918,140.35,140.32,10.6908]
[1641727549863,9.918e-05,140.35,140.33,6.0643]
[1641727550063,5.80267188,140.38,140.34,1.78]
[1641727550260,5.80267188,140.38,140.35,27.27857505]
[1641727551163,5.80267188,140.42,140.36,16.7512]
[1641727551361,1.78,140.44,140.37,76.25]
[1641727551562,25.58364569,140.54,140.38,1.78]
[1641727551763,1.411e-05,140.48,140.39,51.462]
[1641727551963,6.05130544,140.48,140.43,10.6818]
[1641727552163,1.411e-05,140.54,140.44,127.462]
[1641727552366,1.411e-05,140.54,140.45,29.80667486]
[1641727552563,1.411e-05,140.54,140.46,3.0]
[1641727552765,1.411e-05,140.54,140.46,10.16]
[1641727553064,1.411e-05,140.54,140.46,61.622]
[1641727553265,1.411e-05,140.54,140.5,10.6786]
[1641727553466,1.411e-05,140.54,140.51,1.778]
[1641727553667,22.57778027,140.58,140.49,1.778]
[1641727553964,13.94824741,140.57,140.42,1.778]
[1641727554165,13.94824741,140.57,140.42,5.028]
[1641727554365,4.2834158,140.56,140.42,5.028]
[1641727554565,1.778,140.55,140.43,25.11919845]
[1641727554765,5.8114158,140.55,140.44,37.3823]
[1641727554967,0.25,140.54,140.44,37.6323]
[1641727555764,4.0334158,140.53,140.48,10.6806]
[1641727556164,4.0334158,140.55,140.48,10.6806]
[1641727556870,0.25,140.54,140.48,10.6806]
[1641727557267,4.0334158,140.53,140.48,10.6806]
[1641727557567,0.25,140.52,140.48,10.6806]
[1641727557766,4.0334158,140.53,140.48,10.6806]
[1641727558892,0.25,140.55,140.48,10.6806]
[1641727560096,0.25,140.55,140.48,12.4586]
[1641727560492,0.07,140.54,140.46,10.6821]
[1641727560692,1.848,140.54,140.46,10.6821]
[1641727560894,0.25,140.53,140.46,10.6821]
[1641727561094,1.778,140.52,140.46,10.6821]
[1641727561595,0.25,140.51,140.45,10.6836]
[1641727561795,1.778,140.5,140.45,10.6836]
[1641727561998,0.25,140.49,140.45,10.6836]
[1641727563200,0.25,140.51,140.45,10.6836]
[1641727564002,0.25,140.52,140.45,10.6836]
[1641727564202,1.778,140.51,140.45,10.6836]
[1641727564401,0.25,140.5,140.45,10.6836]
[1641727565809,12.4611,140.53,140.45,10.6836]
[1641727565810,0.25,140.52,140.45,10.6836]
[1641727566008,0.25,140.52,140.44,39.40377577]
[1641727567817,10.9339,140.52,140.44,39.40377577]
[1641727568515,3.0,140.51,140.44,39.40377577]
[1641727568914,0.25,140.5,140.44,39.40377577]
[1641727569344,0.25,140.5,140.45,1.778]
[1641727569614,0.25,140.5,140.45,12.4616]
[1641727570218,0.25,140.5,140.45,1.778]
[1641727570421,1.778,140.49,140.41,1.778]
[1641727570616,1.778,140.49,140.41,12.4646]
[1641727570816,0.25,140.48,140.41,12.4646]
[1641727571016,0.25,140.48,140.41,10.6866]
[1641727571416,0.25,140.48,140.42,22.80985634]
[1641727571917,0.25,140.49,140.42,22.80985634]
[1641727572519,3.25,140.49,140.42,22.80985634]
[1641727572923,13.9361,140.49,140.42,33.49535634]
[1641727573418,3.25,140.49,140.42,33.49535634]
[1641727573618,0.25,140.49,140.42,33.49535634]
[1641727573824,3.0,140.48,140.42,33.49535634]
[1641727574025,3.0,140.47,140.42,33.49535634]
[1641727574225,0.25,140.5,140.42,33.49535634]
[1641727574426,3.0,140.46,140.42,33.49535634]
[1641727574625,0.25,140.5,140.42,33.49535634]
[1641727575125,3.25,140.5,140.42,33.49535634]
[1641727576629,13.9351,140.5,140.42,33.49535634]
[1641727577053,4.01309464,140.49,140.42,33.49535634]
[1641727577458,0.25,140.48,140.42,33.49535634]
[1641727578563,0.25,140.49,140.42,33.49535634]
[1641727578962,0.25,140.5,140.46,10.6825]
[1641727579164,4.02405525,140.47,140.46,10.6825]
[1641727579362,4.02405525,140.47,140.46,16.7468]
[1641727579763,4.02405525,140.47,140.46,48.746044]
[1641727580065,4.02405525,140.49,140.46,31.99924401]
[1641727580267,4.02405525,140.47,140.46,31.99924401]
[1641727580465,4.02405525,140.47,140.46,48.74604401]
[1641727580867,4.02405525,140.5,140.46,48.74604401]
[1641727581269,0.25,140.49,140.46,6.06430001]
[1641727581467,0.25,140.49,140.46,1e-08]
[1641727582268,4.02405525,140.48,140.46,1e-08]
[1641727582467,0.25,140.47,140.46,1e-08]
[1641727582867,0.25,140.47,140.46,6.06430001]
[1641727583468,4.02405525,140.47,140.46,6.06430001]
[1641727583868,4.02405525,140.47,140.46,32.34520029]
[1641727584071,4.02405525,140.49,140.46,32.34520029]
[1641727584470,0.25,140.48,140.46,6.06430001]
[1641727584671,0.25,140.48,140.46,1e-08]
[1641727585273,4.02405525,140.47,140.46,1e-08]
[1641727585472,14.96245525,140.47,140.46,1e-08]
[1641727585671,17.96245525,140.47,140.46,1e-08]
[1641727587373,19.74045525,140.47,140.38,1.778]
[1641727587573,19.74045525,140.47,140.3,73.6743]
[1641727587574,1.78,140.46,140.31,1.78]
[1641727587775,10.6929,140.4,140.33,10.6927]
[1641727587975,0.25,140.39,140.31,1.78]
[1641727588174,0.25,140.39,140.32,25.52819052]
[1641727589074,10.6931,140.39,140.32,25.52819052]
[1641727589476,0.25,140.38,140.33,1.78]
[1641727590074,0.25,140.38,140.32,25.52819052]
[1641727590478,0.25,140.39,140.32,25.52819052]
[1641727590690,5.64147431,140.39,140.32,25.52819052]
[1641727590879,5.71147431,140.39,140.32,25.52819052]
[1641727591079,0.32,140.39,140.32,25.52819052]
[1641727591578,10.697,140.35,140.32,25.52819052]
[1641727591779,10.697,140.35,140.33,6.0643]
[1641727592077,8.3676063,140.35,140.33,6.0643]
[1641727592277,0.25,140.34,140.33,6.0643]
[1641727592479,1.78,140.37,140.33,6.0643]
[1641727592678,10.6953,140.36,140.33,6.0643]
[1641727592877,1.85,140.4,140.33,6.0643]
[1641727593077,1.85,140.4,140.27,24.7739]
[1641727593278,1.85,140.4,140.28,31.12503266]
[1641727593680,1.85,140.4,140.28,30.87503266]
[1641727594079,0.462,140.39,140.29,77.78]
[1641727595704,0.462,140.39,140.29,76.0]
[1641727595908,1.78,140.4,140.29,76.0]
[1641727596512,3.0,140.39,140.29,76.0]
[1641727596712,1.78,140.38,140.29,76.0]
[1641727596911,10.6965,140.35,140.29,86.6961]
[1641727597412,0.25,140.34,140.29,86.6961]
[1641727598111,0.25,140.34,140.29,10.6961]
[1641727598311,10.9468,140.34,140.28,32.65503266]
[1641727598511,10.9468,140.34,140.28,1.78]
[1641727599912,25.50105419,140.33,140.28,1.78]
[1641727600117,10.7023,140.31,140.28,1.78]
[1641727600513,10.7023,140.31,140.24,123.56341267]
[1641727600514,0.25,140.3,140.24,123.56341267]
[1641727600916,0.25,140.3,140.24,28.86341267]
[1641727601315,10.7023,140.27,140.24,28.86341267]
[1641727601917,0.25,140.3,140.24,28.86341267]
[1641727602118,35.6742,140.31,140.24,28.86341267]
[1641727602316,0.25,140.3,140.24,28.86341267]
[1641727602717,10.7017,140.28,140.24,28.86341267]
[1641727603821,3.0,140.27,140.24,28.86341267]
[1641727604520,13.7025,140.27,140.24,28.86341267]
[1641727605222,1.78,140.33,140.24,28.86341267]
[1641727605423,37.4487,140.33,140.25,8.0963]
[1641727605622,1.782,140.38,140.25,8.0963]
[1641727606025,1.92314722,140.35,140.25,8.0963]
[1641727606324,1.92314722,140.35,140.25,61.33912586]
[1641727606524,1.92314722,140.35,140.25,72.03792586]
[1641727606725,1.92314722,140.36,140.25,20.57592586]
[1641727606929,1.92314722,140.36,140.25,42.9917]
[1641727607425,3.0,140.35,140.25,42.9917]
[1641727607626,3.25,140.35,140.25,42.9917]
[1641727607827,0.25,140.35,140.25,42.9917]
[1641727608228,3.25,140.35,140.25,42.9917]
[1641727608428,0.25,140.35,140.25,43.0617]
[1641727608829,3.25,140.35,140.25,43.0617]
[1641727609932,13.9469,140.35,140.25,43.0617]
[1641727610931,15.87004722,140.35,140.25,43.0617]
[1641727612234,15.87004722,140.35,140.25,42.8117]
[1641727612432,13.9469,140.35,140.25,42.8117]
[1641727613145,1.92314722,140.34,140.25,42.8117]
[1641727613535,0.25,140.33,140.25,42.8117]
[1641727613733,0.25,140.33,140.26,0.25]
[1641727613934,1.92314722,140.34,140.26,0.25]
[1641727614353,1.92314722,140.35,140.26,0.25]
[1641727614858,1.92314722,140.34,140.29,10.6959]
[1641727615060,1.92314722,140.34,140.29,29.11093103]
[1641727615461,0.25,140.33,140.29,29.11093103]
[1641727616163,2.17314722,140.33,140.29,29.11093103]
[1641727616365,2.17314722,140.33,140.27,10.6971]
[1641727617168,1.92314722,140.31,140.27,10.6971]
[1641727617365,1.92314722,140.31,140.27,41.17896742]
[1641727620168,1.92314722,140.31,140.27,30.48186742]
[1641727623173,1.92314722,140.31,140.25,36.6777]
[1641727623375,1.92314722,140.31,140.25,12.4811]
[1641727624173,1.92314722,140.3,140.26,30.06424813]
[1641727624674,1.92314722,140.3,140.26,40.76254813]
[1641727625876,1.92314722,140.3,140.27,12.72832586]
[1641727626077,1.92314722,140.3,140.28,7.8463]
[1641727626876,1.92314722,140.31,140.29,61.87041162]
[1641727627276,1.92314722,140.31,140.3,39.0643]
[1641727628579,5.90272025,140.37,140.31,56.0]
[1641727628780,5.90272025,140.37,140.31,63.626]
[1641727628979,5.90272025,140.37,140.32,0.25]
[1641727629380,5.90272025,140.37,140.33,10.693]
[1641727629583,5.90272025,140.41,140.32,28.81546374]
[1641727629782,0.25,140.36,140.32,28.81546374]
[1641727630084,2.03,140.4,140.32,28.81546374]
[1641727630481,10.6953,140.37,140.32,28.81546374]
[1641727631684,10.9457,140.36,140.32,28.81546374]
[1641727631892,0.25,140.35,140.32,28.81546374]
[1641727632086,0.25,140.35,140.29,34.106]
[1641727632286,0.25,140.35,140.3,1.78]
[1641727632487,0.25,140.35,140.29,35.886]
[1641727632987,10.9468,140.35,140.29,25.1901]
[1641727633207,10.9468,140.35,140.29,1.78]
[1641727633405,12.7268,140.35,140.29,1.78]
[1641727633606,3.0,140.34,140.29,1.78]
[1641727634006,0.25,140.33,140.29,1.78]
[1641727634207,10.6996,140.31,140.27,1.78]
[1641727635609,10.6988,140.32,140.27,1.78]
[1641727637712,3.0,140.31,140.27,1.78]
[1641727638111,13.6997,140.31,140.27,1.78]
[1641727639012,0.25,140.3,140.27,1.78]
[1641727639812,10.9503,140.3,140.27,1.78]
[1641727640619,10.9503,140.3,140.24,1.782]
[1641727643826,10.7026,140.27,140.24,1.782]
[1641727644231,0.25,140.26,140.24,1.782]
[1641727645629,10.9536,140.26,140.24,1.782]
[1641727645827,2.032,140.28,140.24,1.782]
[1641727646028,0.25,140.28,140.24,1.782]
[1641727646429,4.04166011,140.29,140.24,1.782]
[1641727646628,4.04166011,140.29,140.22,1.782]
[1641727646833,4.04166011,140.29,140.24,10.6999]
[1641727647028,4.04166011,140.3,140.25,23.0039933]
[1641727647631,85.06606011,140.32,140.25,23.0039933]
[1641727648330,10.7011,140.29,140.25,23.0039933]
[1641727648732,3.0,140.28,140.25,23.0039933]
[1641727649029,3.0,140.28,140.23,23.3551]
[1641727649231,3.0,140.28,140.22,12.4831]
[1641727650031,3.0,140.28,140.23,28.5230877]
[1641727650331,3.0,140.28,140.23,39.2236877]
[1641727650531,3.0,140.29,140.23,39.2236877]
[1641727650733,3.0,140.29,140.24,1.782]
[1641727651132,24.8196,140.31,140.25,3.0]
[1641727651333,3.0,140.3,140.25,3.0]
[1641727651732,10.7017,140.28,140.25,3.0]
[1641727651932,10.7017,140.28,140.24,1.782]
[1641727651933,0.25,140.27,140.24,1.782]
[1641727652132,0.25,140.27,140.19,1.782]
[1641727652333,0.25,140.27,140.19,12.4854]
[1641727652535,0.25,140.27,140.2,0.25]
[1641727652733,10.9528,140.27,140.2,0.25]
[1641727653133,10.9528,140.27,140.2,32.15286659]
[1641727653839,10.9528,140.27,140.2,42.85596659]
[1641727655737,10.7028,140.27,140.2,42.85596659]
[1641727656938,10.7028,140.27,140.21,1.782]
[1641727657338,10.7028,140.27,140.21,12.4843]
[1641727657943,10.7018,140.28,140.21,12.4843]
[1641727658242,10.9518,140.28,140.21,12.4843]
[1641727658643,10.9518,140.28,140.21,1.782]
[1641727659571,3.0,140.27,140.21,1.782]
[1641727659772,10.7042,140.25,140.21,1.782]
[1641727659969,3.0,140.27,140.21,1.782]
[1641727660169,0.25,140.26,140.21,1.782]
[1641727661373,10.9533,140.26,140.21,1.782]
[1641727661771,10.9533,140.26,140.2,31.90286659]
[1641727663073,3.0,140.25,140.21,1.782]
[1641727663276,13.7044,140.25,140.21,1.782]
[1641727663675,0.25,140.24,140.21,1.782]
[1641727664273,10.7079,140.23,140.21,1.782]
[1641727665778,10.7079,140.23,140.17,1.782]
[1641727666676,10.9551,140.24,140.17,1.782]
[1641727668779,10.9551,140.24,140.17,12.4873]
[1641727669478,10.9551,140.24,140.17,1.782]
[1641727671385,10.7051,140.24,140.18,0.25]
[1641727671582,10.7051,140.24,140.19,1.782]
[1641727671884,10.7051,140.24,140.19,32.15518366]
[1641727672489,10.7047,140.25,140.19,32.15518366]
[1641727672686,10.7047,140.25,140.19,1.782]
[1641727672888,10.7047,140.25,140.18,1.782]
[1641727673089,10.7047,140.25,140.16,48.7576]
[1641727673090,0.25,140.24,140.17,1.782]
[1641727673290,0.25,140.24,140.17,2.032]
[1641727673489,10.9561,140.24,140.17,2.032]
[1641727673691,24.44607399,140.23,140.17,2.032]
[1641727674291,0.25,140.24,140.17,2.032]
[1641727674491,3.25,140.25,140.17,2.032]
[1641727674892,10.7057,140.24,140.17,2.032]
[1641727675292,0.25,140.23,140.17,2.032]
[1641727675493,0.25,140.23,140.17,1.782]
[1641727675894,0.25,140.23,140.16,1.782]
[1641727676093,10.7087,140.2,140.14,1.782]
[1641727676295,10.7087,140.2,140.13,95.05667364]
[1641727676495,0.25,140.19,140.13,95.05667364]
[1641727677095,10.712,140.16,140.13,95.05667364]
[1641727677495,0.25,140.19,140.13,95.05667364]
[1641727677896,3.25,140.19,140.13,95.05667364]
[1641727678331,38.9583,140.19,140.13,95.05667364]
[1641727678631,0.25,140.19,140.13,95.05667364]
[1641727679133,0.25,140.2,140.13,95.05667364]
[1641727679329,10.711,140.17,140.13,95.05667364]
[1641727679530,72.7782,140.2,140.13,95.05667364]
[1641727680431,83.4876,140.2,140.13,95.05667364]
[1641727681834,85.2696,140.2,140.13,95.05667364]
[1641727682934,83.4876,140.2,140.13,95.05667364]
[1641727684140,85.2696,140.2,140.13,95.05667364]
[1641727684639,10.7111,140.17,140.13,95.05667364]
[1641727684837,23.42166713,140.18,140.13,95.05667364]
[1641727685337,0.25,140.17,140.13,95.05667364]
[1641727686239,23.42166713,140.18,140.13,95.05667364]
[1641727686839,34.13196713,140.18,140.13,95.05667364]
[1641727687039,23.42166713,140.18,140.13,95.05667364]
[1641727688542,0.25,140.17,140.13,95.05667364]
[1641727688941,23.42166713,140.18,140.13,95.05667364]
[1641727689144,34.13196713,140.18,140.13,95.05667364]
[1641727689370,34.13196713,140.18,140.13,0.35667364]
[1641727689646,0.25,140.17,140.13,0.35667364]
[1641727690442,3.25,140.17,140.13,0.35667364]
[1641727690846,10.264,140.17,140.13,0.35667364]
[1641727691144,12.046,140.17,140.13,0.35667364]
[1641727691343,22.7572,140.17,140.13,0.35667364]
[1641727693449,65.0,140.16,140.08,1.5613056]
[1641727693649,10.7182,140.12,140.08,1.5613056]
[1641727693847,23.49499918,140.11,140.07,94.8]
[1641727694048,58.47491488,140.07,140.0,168.8]
[1641727694251,1.784,140.06,139.98,168.8]
[1641727694448,2.034,140.06,139.98,168.8]
[1641727694748,2.034,140.06,139.98,168.3]
[1641727694951,30.83139926,140.05,139.97,94.7]
[1641727695148,2.034,140.06,139.98,1.785]
[1641727695149,0.25,140.06,139.98,1.785]
[1641727695349,0.25,140.04,139.98,1.785]
[1641727695548,2.034,140.06,139.97,94.7]
[1641727695950,2.034,140.06,139.97,105.4203]
[1641727696449,2.034,140.06,139.97,130.85906775]
[1641727696651,0.25,140.06,139.98,1.784]
[1641727696876,0.25,140.06,139.98,2.034]
[1641727697074,10.9694,140.06,139.98,12.7533]
[1641727697476,10.9694,140.06,139.98,1.784]
[1641727697676,12.7534,140.06,139.98,1.784]
[1641727697876,12.7534,140.06,139.97,120.13876775]
[1641727699280,12.7534,140.06,139.97,94.7]
[1641727699783,10.9694,140.06,139.97,105.4203]
[1641727700081,7.47491488,140.07,139.98,0.25]
[1641727700480,3.0,140.06,139.98,0.25]
[1641727700680,3.0,140.06,139.98,30.09966397]
[1641727701083,7.47491488,140.07,139.98,30.09966397]
[1641727701285,7.47491488,140.07,140.0,10.7174]
[1641727701486,7.47491488,140.07,140.01,2.034]
[1641727702285,18.19361488,140.07,140.01,2.034]
[1641727702483,7.47491488,140.07,140.01,0.25]
[1641727702885,7.47491488,140.07,140.0,0.25]
[1641727703086,7.47491488,140.07,140.01,1.784]
[1641727703288,7.47491488,140.07,139.99,1.784]
[1641727703487,18.19421488,140.07,139.99,2.034]
[1641727703887,0.25,140.06,139.99,1.784]
[1641727706092,3.25,140.06,139.99,1.784]
[1641727706491,3.25,140.06,139.99,12.5028]
[1641727708493,3.0,140.06,140.0,0.25]
[1641727708696,3.0,140.06,140.01,12.5014]
[1641727708894,7.47491488,140.07,140.01,12.5014]
[1641727709296,0.25,140.06,140.01,1.784]
[1641727710599,0.25,140.06,139.99,1.784]
[1641727710798,0.25,140.06,139.99,2.034]
[1641727711202,0.25,140.06,139.99,12.7524]
[1641727711601,7.47491488,140.07,139.99,12.7524]
[1641727712802,0.25,140.06,139.99,12.7524]
[1641727713702,7.47491488,140.07,139.99,12.7524]
[1641727713903,7.47491488,140.07,139.99,64.2144]
[1641727714102,7.47491488,140.07,140.0,3.0]
[1641727714305,7.47491488,140.07,140.03,10.7149]
[1641727715505,7.47491488,140.07,140.02,10.7167]
[1641727715903,7.47491488,140.07,140.03,0.25]
[1641727716706,7.47491488,140.07,140.03,10.9654]
[1641727716913,7.47491488,140.07,140.04,1.784]
[1641727717106,7.47491488,140.07,140.05,6.0643]
[1641727717307,7.47491488,140.07,140.06,52.784]
[1641727717708,105.26432771,140.14,140.07,61.0]
[1641727717906,39.67186011,140.17,140.07,61.0]
[1641727718306,37.4142,140.17,140.07,61.0]
[1641727718507,26.7032,140.17,140.07,61.0]
[1641727718706,26.7032,140.17,140.08,0.25]
[1641727718906,56.7686216,140.17,140.09,1.784]
[1641727719108,56.7686216,140.17,140.11,10.7098]
[1641727719306,31.8494216,140.17,140.09,1.784]
[1641727719508,31.8494216,140.17,140.08,100.8636]
[1641727719907,31.8494216,140.17,140.09,0.25]
[1641727720112,1.784,140.16,140.1,12.4941]
[1641727720308,1.784,140.16,140.08,100.8636]
[1641727720507,0.25,140.15,140.08,99.0796]
[1641727720707,0.25,140.15,140.08,24.0312]
[1641727721313,0.25,140.15,140.08,25.8152]
[1641727721509,0.25,140.16,140.08,25.8152]
[1641727721708,3.25,140.16,140.08,25.8152]
[1641727722112,3.25,140.16,140.09,10.7111]
[1641727722714,13.9616,140.16,140.09,10.7111]
[1641727723243,18.00326011,140.16,140.09,10.7111]
[1641727723844,3.25,140.16,140.09,10.7111]
[1641727726946,0.25,140.16,140.09,10.7111]
[1641727728946,46.60188171,140.17,140.09,10.7111]
[1641727729247,35.89108171,140.17,140.11,10.7097]
[1641727729448,31.8494216,140.17,140.11,10.7097]
[1641727730351,0.25,140.16,140.11,10.7097]
[1641727735158,0.25,140.16,140.1,10.7106]
[1641727738760,13.9617,140.16,140.08,10.7117]
[1641727738964,1.784,140.15,140.08,10.7117]
[1641727739361,0.25,140.14,140.08,10.7117]
[1641727741367,0.25,140.15,140.08,10.7117]
[1641727742697,0.25,140.15,140.08,12.4957]
[1641727743698,0.25,140.15,140.08,10.7117]
[1641727744101,4.29166011,140.15,140.08,10.7117]
[1641727744302,15.85250174,140.14,140.08,10.7117]
[1641727744501,4.04166011,140.15,140.08,10.7117]
[1641727745601,23.54616162,140.14,140.08,10.7117]